[Event "44th Chess Olympiad Open 2022"]
[Site "Chennai"]
[Date "2022.08.05"]
[Round "7.44"]
[White "Razanadrakotoarisoa, Toavina"]
[Black "Amdouni, Zoubaier"]
[Result "1-0"]
[ECO "B35"]
[WhiteElo "2039"]
[BlackElo "2224"]
[Annotator "NA RC"]
[PlyCount "115"]
[EventDate "2022.07.29"]
[EventType "team-tourn"]
[EventCountry "IND"]
[SourceTitle "playchess.com"]
[Source "ChessBase"]
[SourceQuality "1"]
[WhiteTeam "Madagascar"]
[BlackTeam "Tunisia"]
[WhiteTeamCountry "MAD"]
[BlackTeamCountry "TUN"]
[TimeControl "40/5400+30:1800+30"]

1. e4 {[%emt 0:00:06]} c5 {[%emt 0:00:18]} 2. Nf3 {[%emt 0:00:11]} Nc6 {[%emt 0:00:05]} 3. d4 {[%emt 0:00:23]} cxd4 {[%emt 0:00:03]} 4. Nxd4 {[%emt 0:00:08]} g6 {[%emt 0:00:19]} 5. Nc3 {[%emt 0:01:15]} Bg7 {[%emt 0:00:04]} 6. Be3 {[%emt 0:00:40]} Nf6 {[%emt 0:00:06]} 7. Bc4 {[%emt 0:00:53]} O-O {[%emt 0:00:29]} 8. Bb3 {[%emt 0:01:49]} Re8 {[%emt 0:01:22]} 9. O-O {[%emt 0:01:34]} d6 {[%emt 0:05:05]} 10. h3 {[%emt 0:09:52]} a6 {[%emt 0:27:04]} 11. a4 {[%emt 0:22:37]} Na5 {[%emt 0:08:08]} 12. Ba2 {[%emt 0:00:45]} Qc7 {[%emt 0:04:08]} 13. Qd3 {[%emt 0:13:57]} e5 {[%emt 0:05:11]} 14. Nf3 {[%emt 0:03:01]} Be6 {[%emt 0:01:34]} 15. Rfd1 {[%emt 0:10:44]} Bxa2 {[%emt 0:11:55]} 16. Rxa2 {[%emt 0:01:46]} Nc6 {[%emt 0:00:25]} 17. Qxd6 {[%emt 0:05:53]} Qxd6 {[%emt 0:00:23]} 18. Rxd6 {[%emt 0:00:01]} Nb4 {[%emt 0:01:05]} 19. Ra3 {[%emt 0:00:26]} Nxc2 {[%emt 0:14:01]} 20. Rb3 {[%emt 0:00:16]} Nxe3 {[%emt 0:03:57]} 21. fxe3 {[%emt 0:00:02]} Re7 {[%emt 0:00:18]} 22. Rbb6 {[%emt 0:07:40]} Ne8 {[%emt 0:03:49]} 23. Nd5 {[%emt 0:00:13]} Nxd6 {[%emt 0:00:55]} 24. Nxe7+ {[%emt 0:00:01]} Kf8 {[%emt 0:00:00]} 25. Nxg6+ {[%emt 0:00:22]} hxg6 {[%emt 0:00:05]} 26. Rxd6 {[%emt 0:00:05]} Ke7 {[%emt 0:07:18]} 27. Rb6 {[%emt 0:00:39]} Rb8 {[%emt 0:00:10]} 28. a5 {[%emt 0:06:24]} Kd7 {[%emt 0:04:33]} 29. Kf2 {[%emt 0:00:03]} Kc7 {[%emt 0:00:30]} 30. Ng5 {[%emt 0:00:21]} Rd8 {[%emt 0:00:12]} 31. Ke2 {[%emt 0:00:35]} Rd7 {[%emt 0:00:08]} 32. b4 {[%emt 0:04:35]} Bf8 {[%emt 0:01:33]} 33. Nh7 {[%emt 0:02:09]} Be7 {[%emt 0:00:57]} 34. Nf6 {[%emt 0:00:06]} Bxf6 {[%emt 0:00:15]} 35. Rxf6 {[%emt 0:00:02]} Kd8 {[%emt 0:00:17]} 36. h4 {[%emt 0:00:11]} Ke7 {[%emt 0:00:41]} 37. Rb6 {[%emt 0:00:02]} Kf8 {[%emt 0:00:23]} 38. Kf3 {[%emt 0:00:16]} Kg7 {[%emt 0:00:21]} 39. Kg4 {[%emt 0:03:30]} Rc7 {[%emt 0:00:27]} 40. h5 {[%emt 0:04:39]} Kh6 {[%emt 0:01:23]} 41. hxg6 {[%emt 0:32:13]} fxg6 {[%emt 0:02:54]} 42. Kf3 {[%emt 0:00:00]} Kg7 {[%emt 0:18:36]} 43. Re6 {[%emt 0:00:00]} Kf7 {[%emt 0:00:17]} 44. Rxe5 {[%emt 0:00:00]} Rc4 {[%emt 0:01:53]} 45. b5 {[%emt 0:00:00]} Ra4 {[%emt 0:05:40]} 46. bxa6 {[%emt 0:00:00]} bxa6 {[%emt 0:00:03]} 47. Rc5 {[%emt 0:00:00]} Ke7 {[%emt 0:03:29]} 48. Kf4 {[%emt 0:00:00]} Kd6 {[%emt 0:00:16]} 49. Rg5 {[%emt 0:00:00]} Ke7 {[%emt 0:00:10]} 50. g4 {[%emt 0:00:00]} Kf6 {[%emt 0:00:35]} 51. Rc5 {[%emt 0:00:00]} Ke7 {[%emt 0:01:08]} 52. Ke5 {[%emt 0:00:00]} Kd7 {[%emt 0:00:21]} 53. g5 {[%emt 0:00:00]} Rb4 {[%emt 0:00:39]} 54. Kf6 {[%emt 0:00:00]} Rxe4 {[%emt 0:00:08]} 55. Re5 {[%emt 0:01:45]} Ra4 {[%emt 0:01:22]} 56. Kxg6 {[%emt 0:00:00]} Kd6 {[%emt 0:00:23]} 57. Kf6 {[%emt 0:00:00]} Rg4 {[%emt 0:00:36]} 58. Re6+ {[%emt 0:00:00]} 1-0

[Event "44th Chess Olympiad Open 2022"]
[Site "Chennai"]
[Date "2022.08.05"]
[Round "7.45"]
[White "Steil-Antoni, Fiona"]
[Black "Ajak Mach Duany"]
[Result "0-1"]
[ECO "B12"]
[WhiteElo "2218"]
[BlackElo "2029"]
[Annotator "NA RC"]
[PlyCount "134"]
[EventDate "2022.07.29"]
[EventType "team-tourn"]
[EventCountry "IND"]
[SourceTitle "playchess.com"]
[Source "ChessBase"]
[SourceQuality "1"]
[WhiteTeam "Luxembourg"]
[BlackTeam "SSD"]
[WhiteTeamCountry "LUX"]
[TimeControl "40/5400+30:1800+30"]

1. e4 {[%emt 0:00:03]} c6 {[%emt 0:00:12]} 2. d4 {[%emt 0:00:07]} d5 {[%emt 0:00:10]} 3. e5 {[%emt 0:00:07]} Bf5 {[%emt 0:00:14]} 4. g4 {[%emt 0:00:11]} Bg6 {[%emt 0:00:19]} 5. e6 {[%emt 0:00:26]} fxe6 {[%emt 0:00:49]} 6. h4 {[%emt 0:00:14]} Nd7 {[%emt 0:02:09]} 7. Nf3 {[%emt 0:06:43]} Be4 {[%emt 0:05:55]} 8. Nbd2 {[%emt 0:02:22]} Qa5 {[%emt 0:09:54]} 9. c3 {[%emt 0:03:32]} Ngf6 {[%emt 0:08:24]} 10. g5 {[%emt 0:03:05]} Bxf3 {[%emt 0:06:19]} 11. Qxf3 {[%emt 0:01:21]} Ne4 {[%emt 0:00:48]} 12. Nxe4 {[%emt 0:02:40]} dxe4 {[%emt 0:00:09]} 13. Qxe4 {[%emt 0:00:19]} Qd5 {[%emt 0:00:07]} 14. Bg2 {[%emt 0:01:17]} Qxe4+ {[%emt 0:00:13]} 15. Bxe4 {[%emt 0:00:02]} e5 {[%emt 0:00:11]} 16. dxe5 {[%emt 0:02:37]} Nxe5 {[%emt 0:03:12]} 17. Bf4 {[%emt 0:00:19]} Ng6 {[%emt 0:03:38]} 18. Bg3 {[%emt 0:01:14]} e6 {[%emt 0:02:47]} 19. h5 {[%emt 0:03:28]} Ne7 {[%emt 0:00:14]} 20. O-O-O {[%emt 0:02:39]} Rd8 {[%emt 0:01:11]} 21. Rde1 {[%emt 0:02:26]} Kd7 {[%emt 0:00:28]} 22. Be5 {[%emt 0:04:14]} h6 {[%emt 0:04:11]} 23. g6 {[%emt 0:01:35]} Nd5 {[%emt 0:05:03]} 24. Rh3 {[%emt 0:04:57]} Nf6 {[%emt 0:02:27]} 25. Bc2 {[%emt 0:04:37]} Be7 {[%emt 0:04:39]} 26. Bb3 {[%emt 0:01:17]} c5 {[%emt 0:07:07]} 27. Rf3 {[%emt 0:13:12]} Rhf8 {[%emt 0:03:10]} 28. Bxe6+ {[%emt 0:04:55]} Kc6 {[%emt 0:00:30]} 29. Rh3 {[%emt 0:01:31]} Bd6 {[%emt 0:03:10]} 30. f4 {[%emt 0:07:04]} Bxe5 {[%emt 0:08:38]} 31. fxe5 {[%emt 0:10:02]} Nd5 {[%emt 0:01:51]} 32. Bxd5+ {[%emt 0:04:22]} Rxd5 {[%emt 0:02:05]} 33. e6 {[%emt 0:00:56]} Kd6 {[%emt 0:01:52]} 34. Rf3 {[%emt 0:04:35]} Re8 {[%emt 0:03:44]} 35. Rf7 {[%emt 0:02:44]} Rxe6 {[%emt 0:01:06]} 36. Rxe6+ {[%emt 0:00:03]} Kxe6 {[%emt 0:00:10]} 37. Rxg7 {[%emt 0:01:54]} Rxh5 {[%emt 0:00:13]} 38. Rxb7 {[%emt 0:00:25]} Rg5 {[%emt 0:00:48]} 39. Rxa7 {[%emt 0:01:11]} h5 {[%emt 0:00:12]} 40. Rh7 {[%emt 0:01:41]} Kf6 {[%emt 0:00:16]} 41. g7 {[%emt 0:04:56]} Kf7 {[%emt 0:01:10]} 42. a4 {[%emt 0:02:30]} Kg8 {[%emt 0:00:24]} 43. Rh6 {[%emt 0:00:56]} Kxg7 {[%emt 0:00:13]} 44. Rc6 {[%emt 0:03:38]} h4 {[%emt 0:01:32]} 45. Rc7+ {[%emt 0:05:30]} Kg6 {[%emt 0:00:30]} 46. Rc8 {[%emt 0:04:11]} Kg7 {[%emt 0:07:12]} 47. Rc7+ {[%emt 0:00:54]} Kh6 {[%emt 0:01:07]} 48. Rc8 {[%emt 0:00:57]} Rg7 {[%emt 0:05:07]} 49. Rxc5 {[%emt 0:07:03]} h3 {[%emt 0:00:21]} 50. Rc4 {[%emt 0:01:14]} Kh5 {[%emt 0:00:15]} 51. Rc5+ {[%emt 0:03:38]} Rg5 {[%emt 0:03:51]} 52. Rc8 {[%emt 0:01:15]} Kh4 {[%emt 0:00:13]} 53. Rc4+ {[%emt 0:01:44]} Rg4 {[%emt 0:10:47]} 54. Rc8 {[%emt 0:00:08]} Rxa4 {[%emt 0:02:00]} 55. Rh8+ {[%emt 0:00:25]} Kg3 {[%emt 0:00:15]} 56. Rxh3+ {[%emt 0:00:43]} Kxh3 {[%emt 0:00:12]} 57. Kc2 {[%emt 0:00:34]} Kg4 {[%emt 0:00:09]} 58. Kd3 {[%emt 0:01:41]} Kf5 {[%emt 0:00:13]} 59. b4 {[%emt 0:00:15]} Ke6 {[%emt 0:00:48]} 60. Kc4 {[%emt 0:00:19]} Kd6 {[%emt 0:00:20]} 61. Kb5 {[%emt 0:00:15]} Ra8 {[%emt 0:01:12]} 62. c4 {[%emt 0:00:27]} Rb8+ {[%emt 0:00:22]} 63. Ka5 {[%emt 0:01:07]} Kc6 {[%emt 0:00:45]} 64. Ka4 {[%emt 0:00:12]} Ra8+ {[%emt 0:00:35]} 65. Kb3 {[%emt 0:00:02]} Kd6 {[%emt 0:00:31]} 66. Kc3 {[%emt 0:00:24]} Ra3+ {[%emt 0:00:19]} 67. Kd4 {[%emt 0:00:07]} Rh3 {[%emt 0:00:11]} 0-1

[Event "44th Chess Olympiad Open 2022"]
[Site "Chennai"]
[Date "2022.08.05"]
[Round "7.45"]
[White "Gong Thon Gong"]
[Black "Gengler, Pierre"]
[Result "0-1"]
[ECO "B44"]
[WhiteElo "2176"]
[BlackElo "2194"]
[Annotator "NA RC"]
[PlyCount "76"]
[EventDate "2022.07.29"]
[EventType "team-tourn"]
[EventCountry "IND"]
[SourceTitle "playchess.com"]
[Source "ChessBase"]
[SourceQuality "1"]
[WhiteTeam "SSD"]
[BlackTeam "Luxembourg"]
[BlackTeamCountry "LUX"]
[TimeControl "40/5400+30:1800+30"]

1. e4 {[%emt 0:01:13]} c5 {[%emt 0:00:06]} 2. Nf3 {[%emt 0:00:07]} e6 {[%emt 0:00:05]} 3. d4 {[%emt 0:00:22]} cxd4 {[%emt 0:00:06]} 4. Nxd4 {[%emt 0:00:01]} Nc6 {[%emt 0:00:09]} 5. Nb5 {[%emt 0:00:20]} d6 {[%emt 0:00:18]} 6. Bf4 {[%emt 0:00:25]} e5 {[%emt 0:00:07]} 7. Be3 {[%emt 0:00:11]} a6 {[%emt 0:00:18]} 8. N5a3 {[%emt 0:00:07]} b5 {[%emt 0:00:29]} 9. c4 {[%emt 0:00:13]} b4 {[%emt 0:01:48]} 10. Nc2 {[%emt 0:00:02]} Nf6 {[%emt 0:00:54]} 11. Nd2 {[%emt 0:00:07]} Be7 {[%emt 0:01:07]} 12. Be2 {[%emt 0:00:06]} O-O {[%emt 0:00:29]} 13. O-O {[%emt 0:00:02]} Be6 {[%emt 0:00:37]} 14. f3 {[%emt 0:00:41]} Nd7 {[%emt 0:01:37]} 15. Qe1 {[%emt 0:00:44]} f5 {[%emt 0:00:29]} 16. Rd1 {[%emt 0:03:02]} f4 {[%emt 0:05:13]} 17. Bf2 {[%emt 0:00:09]} a5 {[%emt 0:00:40]} 18. Kh1 {[%emt 0:00:27]} a4 {[%emt 0:00:20]} 19. g3 {[%emt 0:00:09]} fxg3 {[%emt 0:01:14]} 20. Bxg3 {[%emt 0:00:16]} Nc5 {[%emt 0:00:41]} 21. Bf2 {[%emt 0:02:01]} b3 {[%emt 0:02:13]} 22. axb3 {[%emt 0:00:13]} axb3 {[%emt 0:02:37]} 23. Na3 {[%emt 0:00:03]} Na4 {[%emt 0:01:01]} 24. Nb5 {[%emt 0:02:08]} Na5 {[%emt 0:04:56]} 25. Rb1 {[%emt 0:00:12]} Bg5 {[%emt 0:01:02]} 26. Rg1 {[%emt 0:00:35]} Bf4 {[%emt 0:01:47]} 27. Qd1 {[%emt 0:00:17]} Qf6 {[%emt 0:02:01]} 28. Bg3 {[%emt 0:02:24]} Be3 {[%emt 0:06:26]} 29. Rg2 {[%emt 0:00:12]} Bh3 {[%emt 0:00:33]} 30. Nxb3 {[%emt 0:00:12]} Bxg2+ {[%emt 0:06:39]} 31. Kxg2 {[%emt 0:00:02]} Nxb3 {[%emt 0:05:50]} 32. Qxb3 {[%emt 0:00:04]} Bc5 {[%emt 0:00:23]} 33. Qc2 {[%emt 0:01:12]} h5 {[%emt 0:07:09]} 34. h4 {[%emt 0:01:51]} g5 {[%emt 0:01:13]} 35. Nc7 {[%emt 0:02:01]} gxh4 {[%emt 0:01:32]} 36. Nxa8 {[%emt 0:00:24]} Qg5 {[%emt 0:00:13]} 37. Bd3 {[%emt 0:28:15]} Qxg3+ {[%emt 0:02:52]} 38. Kh1 {[%emt 0:00:02]} Bf2 {[%emt 0:00:16]} 0-1

[Event "44th Chess Olympiad Open 2022"]
[Site "Chennai"]
[Date "2022.08.05"]
[Round "7.45"]
[White "Rehan, Deng Cypriano"]
[Black "Berend, Elvira"]
[Result "1-0"]
[ECO "C54"]
[WhiteElo "2105"]
[BlackElo "2333"]
[Annotator "TA"]
[PlyCount "115"]
[EventDate "2022.07.29"]
[EventType "team-tourn"]
[EventCountry "IND"]
[SourceTitle "playchess.com"]
[Source "ChessBase"]
[SourceQuality "1"]
[WhiteTeam "SSD"]
[BlackTeam "Luxembourg"]
[BlackTeamCountry "LUX"]
[TimeControl "40/5400+30:1800+30"]

{[%evp 11,115,8,25,10,11,-2,0,0,0,0,12,0,0,0,0,0,32,33,33,27,109,100,115,56,81,57,71,68,115,58,53,62,80,77,79,54,57,64,72,62,74,68,74,67,82,60,81,75,74,59,102,102,102,99,91,81,149,142,201,175,250,247,244,231,370,327,369,366,314,313,279,291,266,270,844,817,867,472,690,454,451,431,500,497,428,177,178,14,117,14,333,242,9063,4918,29950,29949,29957,29959,29957,29947,29959,12846,29970,29970,12355,0]} 1. e4 {[%emt 0:00:08]} e5 {[%emt 0:00:11]} 2. Nf3 {[%emt 0:00:09]} Nc6 {[%emt 0:00:08]} 3. Bc4 {[%emt 0:01:58]} Bc5 {[%emt 0:00:45]} 4. c3 {[%emt 0:01:24]} Nf6 {[%emt 0:00:57]} 5. O-O {[%emt 0:02:11]} d6 {[%emt 0:12:52]} 6. d3 {[%emt 0:05:05]} h6 {[%emt 0:07:28]} 7. a4 {[%emt 0:01:04] And now b4 would win. C54: Giuoco Piano: 4 c3 Nf6, main lines with 5 d4 and 5 d3.} a5 {[%emt 0:01:45] Against b4 7...a5 scores better than 7...a6.} 8. Qe2 {[%emt 0:01:53]} O-O {[%emt 0:01:34]} 9. Be3 {[%emt 0:00:39] The position is equal.} Bxe3 {[%emt 0:10:47]} 10. fxe3 {[%emt 0:00:21]} Be6 {[%emt 0:00:53]} 11. Nbd2 {[%emt 0:02:03]} Bxc4 {[%emt 0:07:00]} 12. Nxc4 {[%emt 0:00:40]} Re8 {[%emt 0:00:13] [#]} 13. Rad1 $146 {[%emt 0:08:05]} ({Predecessor:} 13. g3 g6 14. Rf2 Qe7 15. Raf1 Nh7 16. h4 Qe6 17. Nh2 Rf8 18. d4 Qh3 19. Qf3 {0-1 (31) Nijboer,F (2546)-Balogh,C (2621) Germany 2016}) 13... d5 {[%emt 0:08:55]} 14. exd5 {[%emt 0:00:42]} Nxd5 {[%emt 0:00:09]} 15. Qf2 {[%emt 0:00:40]} Nb6 {[%emt 0:09:34]} (15... Qd7 $11) 16. Nxb6 $16 {[%emt 0:09:39]} (16. Nh4 {seems wilder.} Qd5 17. e4 Qe6 18. Nxb6 cxb6 19. d4) 16... cxb6 {[%emt 0:00:07]} 17. e4 {[%emt 0:00:29]} ({White should play} 17. Nh4 $16) 17... Re6 {[%emt 0:02:00]} 18. Nh4 {[%emt 0:03:24]} Qc7 {[%emt 0:06:02]} 19. Nf5 {[%emt 0:01:37]} Rf8 {[%emt 0:01:52]} (19... Rd8 $14) 20. Qg3 {[%emt 0:08:32]} (20. d4 $1 $16 {[%cal Rd4d5] d5 is the strong threat.} exd4 21. cxd4) 20... Rg6 $14 {[%emt 0:00:10]} 21. Qh4 {[%emt 0:00:28]} Qd8 {[%emt 0:00:45]} 22. Qxd8 {[%emt 0:01:05] White is more active.} Rxd8 {[%emt 0:00:07]} 23. Rf3 {[%emt 0:00:08]} Rd7 {[%emt 0:00:23]} 24. Kf2 {[%emt 0:02:35]} Ne7 {[%emt 0:00:53]} 25. g3 {[%emt 0:00:41][%cal Bg2g3,Bg3g4][%mdl 32]} Nxf5 {[%emt 0:00:53]} 26. Rxf5 {[%emt 0:00:03][%mdl 4096] Endgame KRR-KRR} Re6 {[%emt 0:00:06]} 27. Ke3 {[%emt 0:00:37]} g6 {[%emt 0:00:29]} 28. Rf2 {[%emt 0:00:44]} Kg7 {[%emt 0:00:23]} 29. g4 {[%emt 0:01:37]} Rc6 {[%emt 0:00:25]} 30. h4 {[%emt 0:01:45]} Rc8 {[%emt 0:01:13]} 31. Rdf1 {[%emt 0:02:58]} Rc6 {[%emt 0:03:15]} 32. g5 {[%emt 0:00:36]} hxg5 {[%emt 0:05:36]} 33. hxg5 {[%emt 0:01:21]} Rc8 {[%emt 0:00:04]} ({Black should try} 33... Rc5) 34. Rh1 $16 {[%emt 0:01:29]} Rcd8 {[%emt 0:00:20]} (34... Rc6 $16 35. Rh3 Rd8) 35. Rd2 $1 $18 {[%emt 0:01:03]} f6 {[%emt 0:04:27]} (35... Rc7 {keeps fighting.} 36. Rh3 Kf8) 36. gxf6+ {[%emt 0:00:51]} Kxf6 {[%emt 0:00:04]} 37. d4 {[%emt 0:00:15]} exd4+ {[%emt 0:04:06]} (37... Kg7 {was worth a try.} 38. Rhh2 Rd6) 38. cxd4 {[%emt 0:00:12]} Rc7 {[%emt 0:00:45]} 39. Rf2+ {[%emt 0:00:38]} Kg7 {[%emt 0:01:59]} 40. Rfh2 {[%emt 0:02:19]} Rc4 {[%emt 0:01:37]} 41. Rh7+ {[%emt 0:31:44]} Kf6 {[%emt 0:30:13]} 42. Rf1+ {[%emt 0:01:08]} (42. Rxb7 Rdxd4 43. Rxb6+ Ke5 $14) 42... Ke6 $2 {[%emt 0:00:21]} (42... Kg5 43. Rg1+ (43. Rxb7 Rdxd4 44. Re7 Rd6 $11) 43... Kf6 44. Rf1+ (44. Rxb7 Rdxd4 45. Rxb6+ Kf7 $14) 44... Kg5 45. Rg1+ (45. Rxb7 Rdxd4 46. Re7 Rd6 $11) 45... Kf6 46. Rf1+ (46. Rxb7 Rdxd4 47. Rxb6+ Kf7 $14)) 43. d5+ {[%emt 0:00:36]} Ke5 {[%emt 0:00:39]} 44. Re7+ {[%emt 0:00:46]} Kd6 {[%emt 0:00:06]} 45. Rxb7 {[%emt 0:00:37]} Re8 {[%emt 0:02:19]} 46. Rxb6+ {[%emt 0:01:17]} Kc7 {[%emt 0:00:15]} 47. Rc6+ $1 {[%emt 0:00:49]} ({Weaker is} 47. Re6 Rxe6 48. dxe6 Kd6 $14) 47... Rxc6 {[%emt 0:00:04]} 48. dxc6 {[%emt 0:00:16] KR-KR} (48. Rf7+ $142 Kb6 49. dxc6) 48... Rb8 {[%emt 0:07:06]} 49. Rf2 {[%emt 0:09:33]} (49. Rf6 $1 $18 {[%cal Rf6g6]}) 49... Rb4 {[%emt 0:00:00] [#]} (49... Kxc6 $11 {keeps the balance.} 50. Rf6+ Kc7) 50. Rg2 {[%emt 0:00:00]} (50. Rf6 $1 $16 {[%cal Rf6g6]}) 50... Rxa4 $2 {[%emt 0:00:00][%mdl 8192] A mistake that costs the game.} (50... Kxc6 $11 51. Rxg6+ Kd7) 51. Rxg6 {[%emt 0:00:00] aiming for Rg2.} Rb4 $2 {[%emt 0:00:00]} (51... Rc4 52. Rg2 Rxc6) 52. Rg2 {[%emt 0:00:00]} Kxc6 {[%emt 0:00:00] [#]} 53. Rd2 $1 {[%emt 0:00:00]} Ra4 {[%emt 0:00:00]} 54. Kf4 {[%emt 0:00:00]} Ra1 {[%emt 0:00:00]} 55. Kf5 {[%emt 0:00:00]} a4 {[%emt 0:01:05]} 56. e5 {[%emt 0:00:00] Intending e6 and mate.} a3 {[%emt 0:03:04]} 57. bxa3 {[%emt 0:00:00]} Rxa3 {[%emt 0:00:05]} 58. Ke4 $2 {[%emt 0:00:55][%mdl 32768] Weighted Error Value: White=0.26 (precise) /Black=0.58. Sensor Board Error (Ke4/e5)?} (58. Rd1 $18 Rf3+ 59. Ke4) 1-0

[Event "44th Chess Olympiad Open 2022"]
[Site "Chennai"]
[Date "2022.08.05"]
[Round "7.45"]
[White "Schartz, Alain"]
[Black "Madol Garang Panthoum"]
[Result "1-0"]
[ECO "B22"]
[WhiteElo "2086"]
[BlackElo "1985"]
[Annotator "TA"]
[PlyCount "57"]
[EventDate "2022.07.29"]
[EventType "team-tourn"]
[EventCountry "IND"]
[SourceTitle "playchess.com"]
[Source "ChessBase"]
[SourceQuality "1"]
[WhiteTeam "Luxembourg"]
[BlackTeam "Uganda"]
[WhiteTeamCountry "LUX"]
[BlackTeamCountry "UGA"]
[TimeControl "40/5400+30:1800+30"]

{[%evp 12,57,-34,20,35,27,47,56,125,143,142,139,216,183,311,305,346,326,570,567,639,595,616,622,596,546,712,691,704,668,699,690,680,674,6337,6253,3102,2945,29985,29986,29986,29987,29988,29989,29993,29994,29994,29995]} 1. e4 {[%emt 0:00:04]} c5 {[%emt 0:00:32]} 2. Nf3 {[%emt 0:00:11]} Nc6 {[%emt 0:01:28]} 3. c3 {[%emt 0:02:22]} d5 {[%emt 0:00:40]} 4. exd5 {[%emt 0:00:27]} Qxd5 {[%emt 0:00:17]} 5. d4 {[%emt 0:00:15]} Bg4 {[%emt 0:00:42]} 6. dxc5 {[%emt 0:00:29]} Qxd1+ {[%emt 0:00:39]} 7. Kxd1 {[%emt 0:00:09]} e5 {[%emt 0:04:56] B22: Sicilian: 2 c3.} 8. b4 {[%emt 0:02:26]} e4 {[%emt 0:04:33][%mdl 64] [#] Pin} 9. h3 {[%emt 0:00:32]} Bxf3+ {[%emt 0:08:13]} (9... Be6 $14 10. Ng5 Bf5) 10. gxf3 $16 {[%emt 0:00:15]} exf3 {[%emt 0:00:24]} 11. Kc2 {[%emt 0:10:39] [#]} a6 $146 {[%emt 0:11:21]} (11... a5 $16 {was necessary.}) ({Predecessor:} 11... Be7 12. Bb5 O-O-O 13. Bxc6 bxc6 14. Nd2 Bf6 15. Nxf3 Ne7 16. Bg5 Nd5 17. Bxf6 gxf6 {1-0 (34) Murariu,A (2504)-Neagu,L (2004) Eforie Nord 2017}) 12. Bf4 {[%emt 0:05:02]} f6 {[%emt 0:08:55]} (12... a5 $142) 13. Nd2 $18 {[%emt 0:01:52][%cal Bb1d2,Bd2c4,Bc4b6][%mdl 32]} g5 {[%emt 0:00:52]} 14. Re1+ {[%emt 0:02:52][%cal Ba1e1,Be1e4,Be4e7][%mdl 32]} Kd7 $2 {[%emt 0:02:12] [#]} (14... Be7 {was called for.} 15. Bc7 Nh6) 15. Nc4 $1 {[%emt 0:07:00] Strongly threatening Nb6+.} gxf4 {[%emt 0:15:56]} (15... Be7 16. Nb6+) 16. Nb6+ {[%emt 0:00:11]} Kd8 {[%emt 0:00:26]} 17. Nxa8 {[%emt 0:02:51]} Ne5 {[%emt 0:01:05]} 18. Re4 {[%emt 0:05:15]} Bh6 {[%emt 0:02:09]} 19. Bc4 {[%emt 0:01:47]} Ne7 {[%emt 0:01:05]} 20. Rd1+ {[%emt 0:04:41]} Kc8 {[%emt 0:04:07]} 21. Nb6+ {[%emt 0:01:49]} Kb8 {[%emt 0:06:50]} 22. Nd7+ {[%emt 0:01:18]} Nxd7 {[%emt 0:06:40]} 23. Rxe7 {[%emt 0:00:49]} Ne5 {[%emt 0:00:42]} 24. Bd5 {[%emt 0:00:29]} Nc6 {[%emt 0:02:22]} 25. Bxc6 {[%emt 0:00:54] White mates.} bxc6 {[%emt 0:00:01]} 26. Rdd7 {[%emt 0:00:57]} Bg5 {[%emt 0:00:05]} 27. Rb7+ {[%emt 0:03:41]} Kc8 {[%emt 0:00:02]} 28. Rec7+ {[%emt 0:01:16]} Kd8 {[%emt 0:00:02]} 29. Rxc6 {[%emt 0:00:26] White took control after the opening.  Weighted Error Value: White=0.04 (flawless) /Black=0.80} 1-0

[Event "44th Chess Olympiad Open 2022"]
[Site "Chennai"]
[Date "2022.08.05"]
[Round "7.46"]
[White "Tran, Thanh Tu"]
[Black "Chaulagain, Purushottam"]
[Result "1-0"]
[ECO "B50"]
[WhiteElo "2375"]
[BlackElo "1975"]
[Annotator "ChessBase"]
[PlyCount "69"]
[EventDate "2022.07.29"]
[EventType "team-tourn"]
[EventCountry "IND"]
[SourceTitle "playchess.com"]
[Source "ChessBase"]
[SourceQuality "1"]
[WhiteTeam "Japan"]
[BlackTeam "Nepal"]
[WhiteTeamCountry "JPN"]
[BlackTeamCountry "NEP"]
[TimeControl "40/5400+30:1800+30"]

1. e4 {[%emt 0:00:34]} c5 {[%emt 0:00:05]} 2. Nf3 {[%emt 0:00:23]} d6 {[%emt 0:00:06]} 3. Bc4 {[%emt 0:03:57]} Nc6 {[%emt 0:00:06]} 4. O-O {[%emt 0:00:47]} e6 {[%emt 0:00:29]} 5. Re1 {[%emt 0:01:21]} Be7 {[%emt 0:01:41]} 6. d3 {[%emt 0:05:06]} Nf6 {[%emt 0:00:53]} 7. Bb3 {[%emt 0:01:10]} O-O {[%emt 0:00:26]} 8. c3 {[%emt 0:00:09]} Qc7 {[%emt 0:11:07]} 9. h3 {[%emt 0:03:15]} b5 {[%emt 0:04:22]} 10. Bf4 {[%emt 0:02:24]} e5 {[%emt 0:11:19]} 11. Bg5 {[%emt 0:03:03]} Be6 {[%emt 0:00:11]} 12. Nbd2 {[%emt 0:00:45]} Nh5 {[%emt 0:07:26]} 13. Be3 {[%emt 0:20:10]} Nf6 {[%emt 0:02:23]} 14. d4 {[%emt 0:30:00]} Bxb3 {[%emt 0:12:24]} 15. Qxb3 {[%emt 0:00:49]} Na5 {[%emt 0:03:22]} 16. Qxb5 {[%emt 0:03:00]} Rab8 {[%emt 0:01:04]} 17. Qa4 {[%emt 0:00:27]} exd4 {[%emt 0:02:33]} 18. cxd4 {[%emt 0:00:13]} Rxb2 {[%emt 0:02:09]} 19. Rac1 {[%emt 0:03:54]} Rfb8 {[%emt 0:06:46]} 20. Bf4 {[%emt 0:02:09]} R8b4 {[%emt 0:03:11]} 21. Qa3 {[%emt 0:00:54]} Qd8 {[%emt 0:07:04]} 22. dxc5 {[%emt 0:02:35]} dxc5 {[%emt 0:00:21]} 23. Be5 {[%emt 0:00:12]} Rxd2 {[%emt 0:08:12]} 24. Nxd2 {[%emt 0:00:03]} Nc6 {[%emt 0:04:04]} 25. Bc3 {[%emt 0:02:48]} Rb7 {[%emt 0:00:05]} 26. Nc4 {[%emt 0:03:13]} Nd4 {[%emt 0:00:42]} 27. Qa6 {[%emt 0:04:14]} Qb8 {[%emt 0:02:29]} 28. Bxd4 {[%emt 0:01:19]} cxd4 {[%emt 0:00:05]} 29. Na5 {[%emt 0:00:11]} Rc7 {[%emt 0:00:49]} 30. Nc6 {[%emt 0:03:11]} Qe8 {[%emt 0:00:22]} 31. e5 {[%emt 0:02:36]} d3 {[%emt 0:05:08]} 32. Nxe7+ {[%emt 0:01:02]} Qxe7 {[%emt 0:00:45]} 33. Rxc7 {[%emt 0:00:22]} d2 {[%emt 0:00:52]} 34. Rc8+ {[%emt 0:00:18]} Ne8 {[%emt 0:00:05]} 35. Rd1 {[%emt 0:00:11]} 1-0